[Event "*** Titled Tuesday Blitz"]
[Site "Chess.com"]
[Date "2020.05.12"]
[Round "2"]
[White "Nastya_Rakhmangulova"]
[Black "chess94cu"]
[Result "1-0"]
[WhiteElo "2282"]
[BlackElo "2456"]
[TimeControl "180+1"]
[EndTime "10:17:33 PDT"]
[Termination "Nastya_Rakhmangulova won by checkmate"]

1. e4 {[%clk 0:03:00.9]} 1... e5 {[%clk 0:02:59.2]} 2. Nf3 {[%clk 0:03:00.8]}
2... Nc6 {[%clk 0:02:59.2]} 3. c3 {[%clk 0:03:01.4]} 3... Nf6 {[%clk 0:02:55.5]}
4. d4 {[%clk 0:03:00.5]} 4... exd4 {[%clk 0:02:55]} 5. e5 {[%clk 0:03:00]} 5...
Nd5 {[%clk 0:02:45]} 6. cxd4 {[%clk 0:02:58.8]} 6... d6 {[%clk 0:02:45.1]} 7.
Bb5 {[%clk 0:02:49.3]} 7... dxe5 {[%clk 0:02:42.2]} 8. Nxe5 {[%clk 0:02:45.6]}
8... Bb4+ {[%clk 0:02:27.5]} 9. Bd2 {[%clk 0:02:42.3]} 9... O-O {[%clk 0:02:08]}
10. Nxc6 {[%clk 0:02:22.3]} 10... bxc6 {[%clk 0:02:05.9]} 11. Bxc6 {[%clk
0:02:23.2]} 11... Rb8 {[%clk 0:02:03.6]} 12. O-O {[%clk 0:02:20.9]} 12... Ba6
{[%clk 0:01:46.4]} 13. Re1 {[%clk 0:02:19.1]} 13... Bxd2 {[%clk 0:00:40.6]} 14.
Qxd2 {[%clk 0:02:17.9]} 14... Nb4 {[%clk 0:00:41.1]} 15. Be4 {[%clk 0:01:58.8]}
15... f5 {[%clk 0:00:39.4]} 16. Bc2 {[%clk 0:01:59]} 16... Nxc2 {[%clk
0:00:37.8]} 17. Qxc2 {[%clk 0:01:59.9]} 17... Qxd4 {[%clk 0:00:37.8]} 18. Nc3
{[%clk 0:01:59.6]} 18... Bb7 {[%clk 0:00:30]} 19. Rad1 {[%clk 0:01:58.8]} 19...
Qg4 {[%clk 0:00:29.8]} 20. Nd5 {[%clk 0:01:47]} 20... Kh8 {[%clk 0:00:29]} 21.
Qxc7 {[%clk 0:01:11]} 21... Bxd5 {[%clk 0:00:27]} 22. Rxd5 {[%clk 0:01:11.9]}
22... Rxb2 {[%clk 0:00:26.8]} 23. Rd8 {[%clk 0:01:08.5]} 23... Qb4 {[%clk
0:00:23.4]} 24. Red1 {[%clk 0:01:00.8]} 24... h6 {[%clk 0:00:15.4]} 25. Qf7
{[%clk 0:00:32.7]} 25... Rxd8 {[%clk 0:00:08.6]} 26. Rxd8+ {[%clk 0:00:31.9]}
26... Kh7 {[%clk 0:00:09.5]} 27. Qxf5+ {[%clk 0:00:31.3]} 27... g6 {[%clk
0:00:09]} 28. Qf7# {[%clk 0:00:31.9]} 1-0

[Event "*** Titled Tuesday Blitz"]
[Site "Chess.com"]
[Date "2020.05.12"]
[Round "2"]
[White "bazar-wokzal"]
[Black "AlexZambrano"]
[Result "1-0"]
[WhiteElo "2545"]
[BlackElo "2288"]
[TimeControl "180+1"]
[EndTime "10:17:34 PDT"]
[Termination "bazar-wokzal won on time"]

1. e4 {[%clk 0:03:00.9]} 1... d5 {[%clk 0:02:59.4]} 2. exd5 {[%clk 0:02:56.6]}
2... Qxd5 {[%clk 0:02:56.1]} 3. Nc3 {[%clk 0:02:55.9]} 3... Qd6 {[%clk
0:02:55.7]} 4. Nf3 {[%clk 0:02:54.8]} 4... Bg4 {[%clk 0:02:55]} 5. h3 {[%clk
0:02:53.1]} 5... Bxf3 {[%clk 0:02:54.1]} 6. Qxf3 {[%clk 0:02:52.5]} 6... c6
{[%clk 0:02:53.3]} 7. d4 {[%clk 0:02:51.5]} 7... Nf6 {[%clk 0:02:53.6]} 8. Bf4
{[%clk 0:02:49.6]} 8... Qb4 {[%clk 0:02:51.5]} 9. O-O-O {[%clk 0:02:48.8]} 9...
e6 {[%clk 0:02:50.2]} 10. g4 {[%clk 0:02:20.9]} 10... Nbd7 {[%clk 0:02:48.2]}
11. Bg2 {[%clk 0:02:09.9]} 11... Nd5 {[%clk 0:02:29.6]} 12. Nxd5 {[%clk
0:02:01.7]} 12... cxd5 {[%clk 0:02:29.2]} 13. Rhe1 {[%clk 0:02:01.4]} 13... Be7
{[%clk 0:02:28.4]} 14. Qb3 {[%clk 0:01:48.4]} 14... O-O {[%clk 0:02:22.2]} 15.
c3 {[%clk 0:01:43.7]} 15... Rfc8 {[%clk 0:02:00.5]} 16. Kb1 {[%clk 0:01:43.1]}
16... Qxb3 {[%clk 0:01:41.5]} 17. axb3 {[%clk 0:01:43.1]} 17... Bh4 {[%clk
0:01:41.3]} 18. Re2 {[%clk 0:01:38.3]} 18... a5 {[%clk 0:01:39.7]} 19. c4 {[%clk
0:01:37.8]} 19... Nb6 {[%clk 0:01:21.2]} 20. c5 {[%clk 0:01:35.3]} 20... Nd7
{[%clk 0:01:16.8]} 21. Rc2 {[%clk 0:01:32.4]} 21... Nf8 {[%clk 0:01:07.3]} 22.
Bd6 {[%clk 0:01:29.8]} 22... Ng6 {[%clk 0:00:56.9]} 23. f4 {[%clk 0:01:29.7]}
23... Be7 {[%clk 0:00:35.3]} 24. f5 {[%clk 0:01:29.3]} 24... Bxd6 {[%clk
0:00:24.9]} 25. fxg6 {[%clk 0:01:24.3]} 25... Bf4 {[%clk 0:00:16.3]} 26. gxf7+
{[%clk 0:01:23.7]} 26... Kxf7 {[%clk 0:00:14]} 27. Re1 {[%clk 0:01:21.5]} 27...
a4 {[%clk 0:00:09.5]} 28. b4 {[%clk 0:01:15.7]} 28... a3 {[%clk 0:00:09.1]} 29.
Rce2 {[%clk 0:01:13.5]} 29... axb2 {[%clk 0:00:04.8]} 30. Kxb2 {[%clk
0:01:13.6]} 30... Re8 {[%clk 0:00:03.7]} 31. Kb3 {[%clk 0:01:11.3]} 31... g5
{[%clk 0:00:03.9]} 32. b5 {[%clk 0:01:09.1]} 32... h6 {[%clk 0:00:01]} 33. b6
{[%clk 0:01:08.5]} 1-0

[Event "*** Titled Tuesday Blitz"]
[Site "Chess.com"]
[Date "2020.05.12"]
[Round "2"]
[White "Sashadav97"]
[Black "LastHeroJr"]
[Result "1-0"]
[WhiteElo "2778"]
[BlackElo "2514"]
[TimeControl "180+1"]
[EndTime "10:17:35 PDT"]
[Termination "Sashadav97 won by resignation"]

1. d4 {[%clk 0:03:00.9]} 1... Nf6 {[%clk 0:02:59.5]} 2. c4 {[%clk 0:03:00.7]}
2... e6 {[%clk 0:02:59.9]} 3. Nc3 {[%clk 0:03:00.6]} 3... Bb4 {[%clk 0:02:59.4]}
4. f3 {[%clk 0:03:00.9]} 4... d5 {[%clk 0:02:55]} 5. a3 {[%clk 0:03:00.5]} 5...
Bxc3+ {[%clk 0:02:54.8]} 6. bxc3 {[%clk 0:03:01.4]} 6... O-O {[%clk 0:02:55.1]}
7. cxd5 {[%clk 0:03:01.5]} 7... exd5 {[%clk 0:02:56]} 8. e3 {[%clk 0:03:01.7]}
8... c5 {[%clk 0:02:53.1]} 9. Bd3 {[%clk 0:03:01.6]} 9... Nc6 {[%clk 0:02:53]}
10. Ne2 {[%clk 0:03:01.6]} 10... Re8 {[%clk 0:02:50.3]} 11. O-O {[%clk
0:03:01.4]} 11... b6 {[%clk 0:02:44.9]} 12. Ng3 {[%clk 0:02:48]} 12... Qd6
{[%clk 0:02:26.2]} 13. Ra2 {[%clk 0:02:42.1]} 13... g6 {[%clk 0:02:07.8]} 14.
Re2 {[%clk 0:02:33.7]} 14... Bb7 {[%clk 0:02:01.7]} 15. Bb2 {[%clk 0:02:33.5]}
15... Re7 {[%clk 0:01:52.5]} 16. a4 {[%clk 0:02:15.5]} 16... Rae8 {[%clk
0:01:49.7]} 17. Rfe1 {[%clk 0:02:15.4]} 17... h5 {[%clk 0:01:39.3]} 18. Nh1
{[%clk 0:02:03.7]} 18... Na5 {[%clk 0:01:17.6]} 19. Nf2 {[%clk 0:01:59.5]} 19...
Nc6 {[%clk 0:00:55.5]} 20. Bb5 {[%clk 0:01:53.1]} 20... a6 {[%clk 0:00:53.4]}
21. Bd3 {[%clk 0:01:53.1]} 21... Re6 {[%clk 0:00:50.2]} 22. Bb1 {[%clk
0:01:52.3]} 22... Qe7 {[%clk 0:00:49.3]} 23. e4 {[%clk 0:01:47.3]} 23... dxe4
{[%clk 0:00:41.9]} 24. fxe4 {[%clk 0:01:48.2]} 24... cxd4 {[%clk 0:00:35.6]} 25.
cxd4 {[%clk 0:01:45.6]} 25... Na5 {[%clk 0:00:19.6]} 26. e5 {[%clk 0:01:35.8]}
26... Nd5 {[%clk 0:00:18.1]} 27. Ne4 {[%clk 0:01:36]} 27... Nc4 {[%clk
0:00:18.3]} 28. Bc1 {[%clk 0:01:36.2]} 28... Qc7 {[%clk 0:00:13.1]} 29. Bg5
{[%clk 0:01:28.8]} 29... b5 {[%clk 0:00:05.8]} 30. axb5 {[%clk 0:01:28]} 30...
axb5 {[%clk 0:00:06.7]} 31. Nc5 {[%clk 0:01:27.2]} 31... Rb6 {[%clk 0:00:06]}
32. e6 {[%clk 0:01:22.8]} 32... f5 {[%clk 0:00:05.3]} 33. Qd3 {[%clk 0:01:07.6]}
33... Bc8 {[%clk 0:00:05.2]} 34. Qf3 {[%clk 0:01:00.4]} 34... Nd6 {[%clk
0:00:05.2]} 35. Qxd5 {[%clk 0:00:58.1]} 35... b4 {[%clk 0:00:01.9]} 36. e7+
{[%clk 0:00:57.3]} 36... Kh7 {[%clk 0:00:02.8]} 37. Bf4 {[%clk 0:00:55.8]} 1-0

[Event "*** Titled Tuesday Blitz"]
[Site "Chess.com"]
[Date "2020.05.12"]
[Round "2"]
[White "Mykola-Bortnyk"]
[Black "Pedrada88"]
[Result "1-0"]
[WhiteElo "2869"]
[BlackElo "2343"]
[TimeControl "180+1"]
[EndTime "10:17:36 PDT"]
[Termination "Mykola-Bortnyk won by resignation"]

1. e4 {[%clk 0:03:00.9]} 1... c5 {[%clk 0:02:59.3]} 2. c3 {[%clk 0:02:58.2]}
2... Nf6 {[%clk 0:02:58.3]} 3. e5 {[%clk 0:02:58.2]} 3... Nd5 {[%clk 0:02:58.7]}
4. Bc4 {[%clk 0:02:58.7]} 4... Nb6 {[%clk 0:02:58.4]} 5. Bb3 {[%clk 0:02:58.7]}
5... c4 {[%clk 0:02:58.9]} 6. Bc2 {[%clk 0:02:58]} 6... g5 {[%clk 0:02:59.1]} 7.
d4 {[%clk 0:02:53.2]} 7... cxd3 {[%clk 0:02:55.3]} 8. Bxd3 {[%clk 0:02:52.3]}
8... Nc6 {[%clk 0:02:52.1]} 9. Qe2 {[%clk 0:02:46.4]} 9... e6 {[%clk 0:02:49.3]}
10. Nf3 {[%clk 0:02:43.7]} 10... Be7 {[%clk 0:02:45]} 11. Nbd2 {[%clk 0:02:38]}
11... Qc7 {[%clk 0:02:28.9]} 12. h3 {[%clk 0:02:36.4]} 12... h6 {[%clk
0:02:23.3]} 13. a4 {[%clk 0:02:33.1]} 13... d6 {[%clk 0:02:19.8]} 14. exd6
{[%clk 0:02:28.2]} 14... Bxd6 {[%clk 0:02:20.7]} 15. Ne4 {[%clk 0:02:27.4]}
15... Be7 {[%clk 0:02:20.9]} 16. Ng3 {[%clk 0:02:21.8]} 16... Bd7 {[%clk
0:02:15.5]} 17. O-O {[%clk 0:02:21.5]} 17... Nd5 {[%clk 0:02:14.6]} 18. a5
{[%clk 0:02:17.8]} 18... Nxa5 {[%clk 0:02:00.9]} 19. Ne5 {[%clk 0:02:14.9]}
19... Nb3 {[%clk 0:01:57.7]} 20. Nxd7 {[%clk 0:01:40.4]} 20... Nxa1 {[%clk
0:01:32.3]} 21. Ne5 {[%clk 0:01:36.1]} 21... Nb3 {[%clk 0:01:30.9]} 22. Bb5+
{[%clk 0:01:30.5]} 22... Kf8 {[%clk 0:01:29.2]} 23. Nh5 {[%clk 0:01:11.7]} 23...
Nxc1 {[%clk 0:01:24.6]} 24. Rxc1 {[%clk 0:01:12.6]} 24... a6 {[%clk 0:01:16.5]}
25. Bd3 {[%clk 0:01:11.5]} 25... Rd8 {[%clk 0:01:04.8]} 26. Re1 {[%clk
0:01:09.4]} 26... Nf6 {[%clk 0:00:59.3]} 27. Nxf7 {[%clk 0:01:05.1]} 27... Kxf7
{[%clk 0:00:51.5]} 28. Qxe6+ {[%clk 0:01:03.6]} 28... Kf8 {[%clk 0:00:46.4]} 29.
Bg6 {[%clk 0:01:02.7]} 29... Rh7 {[%clk 0:00:37.9]} 30. Nxf6 {[%clk 0:01:01]}
30... Rg7 {[%clk 0:00:16.3]} 31. Nh7+ {[%clk 0:00:55.3]} 31... Rxh7 {[%clk
0:00:14.4]} 32. Bxh7 {[%clk 0:00:56.2]} 32... Kg7 {[%clk 0:00:14.2]} 33. Qxe7+
{[%clk 0:00:54]} 33... Qxe7 {[%clk 0:00:14]} 34. Rxe7+ {[%clk 0:00:53.4]} 34...
Kf6 {[%clk 0:00:14.9]} 35. Rxb7 {[%clk 0:00:53.7]} 35... Rd1+ {[%clk 0:00:14.5]}
36. Kh2 {[%clk 0:00:54]} 36... Rd2 {[%clk 0:00:15.4]} 37. f3 {[%clk 0:00:54]}
37... h5 {[%clk 0:00:15.3]} 38. c4 {[%clk 0:00:51.2]} 38... Ke5 {[%clk
0:00:12.2]} 39. c5 {[%clk 0:00:50.6]} 39... Kd5 {[%clk 0:00:12.6]} 40. Rd7+
{[%clk 0:00:50.2]} 1-0

[Event "*** Titled Tuesday Blitz"]
[Site "Chess.com"]
[Date "2020.05.12"]
[Round "2"]
[White "Funkmaus"]
[Black "Witaliss"]
[Result "0-1"]
[WhiteElo "2203"]
[BlackElo "2441"]
[TimeControl "180+1"]
[EndTime "10:17:36 PDT"]
[Termination "Witaliss won on time"]

1. d4 {[%clk 0:03:00.9]} 1... c6 {[%clk 0:02:59.5]} 2. c4 {[%clk 0:02:58.8]}
2... d5 {[%clk 0:02:59.3]} 3. cxd5 {[%clk 0:02:59.7]} 3... cxd5 {[%clk 0:02:59]}
4. Nc3 {[%clk 0:02:59.9]} 4... Nc6 {[%clk 0:02:58.9]} 5. Nf3 {[%clk 0:03:00.4]}
5... Nf6 {[%clk 0:02:58.9]} 6. Bf4 {[%clk 0:03:00.1]} 6... a6 {[%clk 0:02:58.5]}
7. e3 {[%clk 0:02:59.7]} 7... Bg4 {[%clk 0:02:57.8]} 8. Be2 {[%clk 0:02:35.3]}
8... e6 {[%clk 0:02:56.2]} 9. h3 {[%clk 0:02:34.4]} 9... Bxf3 {[%clk 0:02:52]}
10. Bxf3 {[%clk 0:02:35.3]} 10... Bb4 {[%clk 0:02:51.4]} 11. O-O {[%clk
0:02:33.9]} 11... O-O {[%clk 0:02:49.9]} 12. a3 {[%clk 0:02:32.6]} 12... Bxc3
{[%clk 0:02:49.6]} 13. bxc3 {[%clk 0:02:33.5]} 13... Na5 {[%clk 0:02:49.6]} 14.
Rb1 {[%clk 0:02:25]} 14... Rc8 {[%clk 0:02:44.3]} 15. Qd2 {[%clk 0:02:08.8]}
15... b5 {[%clk 0:02:39.6]} 16. Rfc1 {[%clk 0:02:03.2]} 16... Ne4 {[%clk
0:02:35.5]} 17. Bxe4 {[%clk 0:02:02.6]} 17... dxe4 {[%clk 0:02:34.9]} 18. Qc2
{[%clk 0:01:56]} 18... Qd5 {[%clk 0:02:29.4]} 19. a4 {[%clk 0:01:52.9]} 19...
Nc4 {[%clk 0:02:25]} 20. Qa2 {[%clk 0:01:42.7]} 20... Nxe3 {[%clk 0:02:20.3]}
21. Qxd5 {[%clk 0:01:35.3]} 21... Nxd5 {[%clk 0:02:19.9]} 22. Bd6 {[%clk
0:01:31.1]} 22... Rfd8 {[%clk 0:02:10.1]} 23. Bc5 {[%clk 0:01:26.2]} 23... bxa4
{[%clk 0:02:08.9]} 24. Ra1 {[%clk 0:01:22.5]} 24... Rb8 {[%clk 0:01:58.8]} 25.
Rxa4 {[%clk 0:01:21.2]} 25... Nc7 {[%clk 0:01:58.6]} 26. Re1 {[%clk 0:01:12.9]}
26... f5 {[%clk 0:01:57.4]} 27. f3 {[%clk 0:01:12.6]} 27... exf3 {[%clk
0:01:56.3]} 28. gxf3 {[%clk 0:01:13.5]} 28... Kf7 {[%clk 0:01:55.8]} 29. Kf2
{[%clk 0:01:04.4]} 29... Rd7 {[%clk 0:01:55]} 30. Bb4 {[%clk 0:00:55.9]} 30...
Rb6 {[%clk 0:01:50.9]} 31. Rea1 {[%clk 0:00:40.6]} 31... Rc6 {[%clk 0:01:43.1]}
32. R1a3 {[%clk 0:00:29.1]} 32... g6 {[%clk 0:01:30.8]} 33. h4 {[%clk
0:00:24.6]} 33... h6 {[%clk 0:01:29.1]} 34. Ke2 {[%clk 0:00:22.1]} 34... g5
{[%clk 0:01:27.6]} 35. hxg5 {[%clk 0:00:21.3]} 35... hxg5 {[%clk 0:01:27.5]} 36.
Ra5 {[%clk 0:00:20.2]} 36... Kg6 {[%clk 0:01:15]} 37. Re5 {[%clk 0:00:14.4]}
37... Nb5 {[%clk 0:01:10]} 38. Rb3 {[%clk 0:00:11]} 38... Rxd4 {[%clk
0:01:04.1]} 39. cxd4 {[%clk 0:00:06.9]} 39... Nxd4+ {[%clk 0:01:03.4]} 40. Kd3
{[%clk 0:00:04.2]} 40... Nxb3 {[%clk 0:01:03.1]} 0-1

[Event "*** Titled Tuesday Blitz"]
[Site "Chess.com"]
[Date "2020.05.12"]
[Round "2"]
[White "Aureliano-Buendia"]
[Black "Lestofante90"]
[Result "1-0"]
[WhiteElo "2416"]
[BlackElo "2639"]
[TimeControl "180+1"]
[EndTime "10:17:38 PDT"]
[Termination "Aureliano-Buendia won by resignation"]

1. d4 {[%clk 0:03:00.8]} 1... Nf6 {[%clk 0:02:58.8]} 2. c4 {[%clk 0:03:00.2]}
2... e6 {[%clk 0:02:59.3]} 3. g3 {[%clk 0:02:59.9]} 3... d5 {[%clk 0:02:58.6]}
4. Nf3 {[%clk 0:02:59.2]} 4... c6 {[%clk 0:02:54]} 5. Nbd2 {[%clk 0:02:56.2]}
5... Be7 {[%clk 0:02:52.2]} 6. Bg2 {[%clk 0:02:55.7]} 6... O-O {[%clk
0:02:51.8]} 7. O-O {[%clk 0:02:56.3]} 7... b6 {[%clk 0:02:52.3]} 8. b3 {[%clk
0:02:55.8]} 8... a5 {[%clk 0:02:51.4]} 9. a3 {[%clk 0:02:54.3]} 9... Ba6 {[%clk
0:02:50.5]} 10. Qc2 {[%clk 0:02:52.6]} 10... Nbd7 {[%clk 0:02:48.3]} 11. Bb2
{[%clk 0:02:51]} 11... Rc8 {[%clk 0:02:48.5]} 12. Rac1 {[%clk 0:02:48]} 12... c5
{[%clk 0:02:44.9]} 13. Qd3 {[%clk 0:02:33.1]} 13... a4 {[%clk 0:02:33.5]} 14. e3
{[%clk 0:02:19.6]} 14... axb3 {[%clk 0:02:27.5]} 15. Qxb3 {[%clk 0:02:18.9]}
15... Qc7 {[%clk 0:01:39.9]} 16. Rfd1 {[%clk 0:02:17.3]} 16... Qa7 {[%clk
0:01:36.2]} 17. Ne5 {[%clk 0:02:10.8]} 17... dxc4 {[%clk 0:01:10.2]} 18. Ndxc4
{[%clk 0:02:04.6]} 18... Bb7 {[%clk 0:00:58.4]} 19. Nxd7 {[%clk 0:01:57.8]}
19... Nxd7 {[%clk 0:00:57.5]} 20. dxc5 {[%clk 0:01:50.4]} 20... Bxg2 {[%clk
0:00:54.5]} 21. Kxg2 {[%clk 0:01:40.4]} 21... Bxc5 {[%clk 0:00:37.8]} 22. Kg1
{[%clk 0:01:31.7]} 22... Rfd8 {[%clk 0:00:33.7]} 23. Nd6 {[%clk 0:01:23.5]}
23... Bxd6 {[%clk 0:00:32.5]} 24. Rxd6 {[%clk 0:01:23.2]} 24... Rxc1+ {[%clk
0:00:31.9]} 25. Bxc1 {[%clk 0:01:23]} 25... Qc7 {[%clk 0:00:32.2]} 26. Qd1
{[%clk 0:01:22.6]} 26... Qc3 {[%clk 0:00:22.7]} 27. e4 {[%clk 0:01:14.3]} 27...
h6 {[%clk 0:00:22.6]} 28. Be3 {[%clk 0:01:13.5]} 28... Qc7 {[%clk 0:00:08.2]}
29. Bxb6 {[%clk 0:01:12.4]} 29... Nxb6 {[%clk 0:00:08.4]} 30. Rxd8+ {[%clk
0:01:12]} 30... Kh7 {[%clk 0:00:09.3]} 31. Kg2 {[%clk 0:01:10.4]} 31... Nc4
{[%clk 0:00:08.7]} 32. Rd4 {[%clk 0:01:07.4]} 32... Ne5 {[%clk 0:00:06.7]} 33.
f4 {[%clk 0:01:05.5]} 33... Ng4 {[%clk 0:00:04.9]} 34. Qxg4 {[%clk 0:01:02.9]}
1-0

[Event "*** Titled Tuesday Blitz"]
[Site "Chess.com"]
[Date "2020.05.12"]
[Round "2"]
[White "ahmadzada13"]
[Black "PlotnikovPavel"]
[Result "1-0"]
[WhiteElo "2745"]
[BlackElo "2497"]
[TimeControl "180+1"]
[EndTime "10:17:39 PDT"]
[Termination "ahmadzada13 won by resignation"]

1. e4 {[%clk 0:03:00.9]} 1... e6 {[%clk 0:03:00]} 2. d4 {[%clk 0:03:00.4]} 2...
d5 {[%clk 0:03:00.1]} 3. Nd2 {[%clk 0:03:01]} 3... Be7 {[%clk 0:02:59.3]} 4. e5
{[%clk 0:02:58.9]} 4... c5 {[%clk 0:02:57.6]} 5. c3 {[%clk 0:02:59.6]} 5... Nc6
{[%clk 0:02:57.3]} 6. Bd3 {[%clk 0:03:00.2]} 6... Nh6 {[%clk 0:02:56]} 7. Ndf3
{[%clk 0:02:59]} 7... Nf5 {[%clk 0:02:55.7]} 8. Ne2 {[%clk 0:02:59.1]} 8... cxd4
{[%clk 0:02:44.7]} 9. cxd4 {[%clk 0:02:58.5]} 9... Qb6 {[%clk 0:02:42.9]} 10.
O-O {[%clk 0:02:52.5]} 10... a5 {[%clk 0:02:23.4]} 11. a3 {[%clk 0:02:49.5]}
11... a4 {[%clk 0:02:21.1]} 12. Bxf5 {[%clk 0:02:42.4]} 12... exf5 {[%clk
0:02:20.8]} 13. Nc3 {[%clk 0:02:43]} 13... Qa5 {[%clk 0:02:16.8]} 14. Bg5 {[%clk
0:02:40.9]} 14... Be6 {[%clk 0:01:58.8]} 15. Qd2 {[%clk 0:02:35]} 15... h6
{[%clk 0:01:55.6]} 16. Bxe7 {[%clk 0:02:33.2]} 16... Nxe7 {[%clk 0:01:56.5]} 17.
Rac1 {[%clk 0:02:28.5]} 17... O-O {[%clk 0:01:56.1]} 18. Qe3 {[%clk 0:02:18.5]}
18... Rfc8 {[%clk 0:01:53.5]} 19. Ne2 {[%clk 0:02:19]} 19... Rc4 {[%clk
0:01:50.8]} 20. Nf4 {[%clk 0:02:11.8]} 20... Rac8 {[%clk 0:01:47.3]} 21. h4
{[%clk 0:01:57.9]} 21... Qb5 {[%clk 0:01:40.2]} 22. Qd2 {[%clk 0:01:41.6]} 22...
Qb3 {[%clk 0:01:33]} 23. Rxc4 {[%clk 0:01:41.3]} 23... Rxc4 {[%clk 0:01:29.3]}
24. Rc1 {[%clk 0:01:40.7]} 24... b5 {[%clk 0:01:23.7]} 25. Rxc4 {[%clk
0:01:32.9]} 25... dxc4 {[%clk 0:01:01.9]} 26. Qa5 {[%clk 0:01:03]} 26... Kh7
{[%clk 0:00:45.4]} 27. Nxe6 {[%clk 0:00:45.3]} 27... fxe6 {[%clk 0:00:44.9]} 28.
Qc7 {[%clk 0:00:45.3]} 28... Nd5 {[%clk 0:00:20.4]} 29. Qc6 {[%clk 0:00:43]}
29... Nf4 {[%clk 0:00:13.9]} 30. g3 {[%clk 0:00:40.5]} 30... Qxf3 {[%clk
0:00:12.8]} 31. Qxf3 {[%clk 0:00:39.7]} 31... Nd3 {[%clk 0:00:10.7]} 32. d5
{[%clk 0:00:38]} 32... Nxe5 {[%clk 0:00:10.8]} 33. Qe2 {[%clk 0:00:38]} 1-0

[Event "*** Titled Tuesday Blitz"]
[Site "Chess.com"]
[Date "2020.05.12"]
[Round "2"]
[White "Klavdia_Nik"]
[Black "Ginzburg_Yakov"]
[Result "0-1"]
[WhiteElo "2068"]
[BlackElo "2391"]
[TimeControl "180+1"]
[EndTime "10:17:40 PDT"]
[Termination "Ginzburg_Yakov won by resignation"]

1. Nf3 {[%clk 0:03:00.9]} 1... Nf6 {[%clk 0:02:58.7]} 2. c4 {[%clk 0:03:00.6]}
2... c6 {[%clk 0:02:58.6]} 3. b3 {[%clk 0:03:00.1]} 3... d5 {[%clk 0:02:58.5]}
4. Bb2 {[%clk 0:03:00.4]} 4... Bf5 {[%clk 0:02:57.6]} 5. g3 {[%clk 0:03:00.7]}
5... e6 {[%clk 0:02:57.4]} 6. Bg2 {[%clk 0:03:01]} 6... h6 {[%clk 0:02:57.8]} 7.
O-O {[%clk 0:03:01.2]} 7... Be7 {[%clk 0:02:57.8]} 8. d3 {[%clk 0:03:00.1]} 8...
O-O {[%clk 0:02:57.9]} 9. Nbd2 {[%clk 0:03:00.5]} 9... Nbd7 {[%clk 0:02:57.7]}
10. Re1 {[%clk 0:02:59.1]} 10... Bh7 {[%clk 0:02:57.4]} 11. Ne5 {[%clk
0:02:49.7]} 11... Bd6 {[%clk 0:02:45.3]} 12. Nxd7 {[%clk 0:02:47.3]} 12... Nxd7
{[%clk 0:02:45.1]} 13. e4 {[%clk 0:02:43.4]} 13... e5 {[%clk 0:02:42.8]} 14.
exd5 {[%clk 0:02:33.8]} 14... cxd5 {[%clk 0:02:40.8]} 15. d4 {[%clk 0:02:28.6]}
15... e4 {[%clk 0:02:28.4]} 16. cxd5 {[%clk 0:02:23]} 16... f5 {[%clk
0:02:28.1]} 17. Nc4 {[%clk 0:02:16.5]} 17... Bb4 {[%clk 0:02:28]} 18. Rf1 {[%clk
0:02:06.2]} 18... Nf6 {[%clk 0:02:28.2]} 19. a3 {[%clk 0:02:05.1]} 19... Be7
{[%clk 0:02:27.1]} 20. d6 {[%clk 0:02:03.8]} 20... Bxd6 {[%clk 0:02:26.7]} 21.
Nxd6 {[%clk 0:02:04.4]} 21... Qxd6 {[%clk 0:02:26.9]} 22. b4 {[%clk 0:01:52.9]}
22... Nd5 {[%clk 0:02:25.6]} 23. Qb3 {[%clk 0:01:51.7]} 23... Kh8 {[%clk
0:02:23.9]} 24. Rac1 {[%clk 0:01:51.7]} 24... Rad8 {[%clk 0:02:23.2]} 25. Rc5
{[%clk 0:01:50]} 25... Bg8 {[%clk 0:02:21]} 26. Qc2 {[%clk 0:01:41.7]} 26...
Rde8 {[%clk 0:02:16.8]} 27. Bc1 {[%clk 0:01:36]} 27... Qf6 {[%clk 0:02:06.9]}
28. Be3 {[%clk 0:01:21.2]} 28... g5 {[%clk 0:02:06.7]} 29. Re1 {[%clk
0:01:05.4]} 29... f4 {[%clk 0:01:57.7]} 30. Bc1 {[%clk 0:01:04.1]} 30... f3
{[%clk 0:01:52.5]} 31. Bf1 {[%clk 0:01:04.1]} 31... e3 {[%clk 0:01:47.7]} 32.
Bd3 {[%clk 0:00:47.5]} 32... exf2+ {[%clk 0:01:35.9]} 33. Kxf2 {[%clk
0:00:47.7]} 33... Rxe1 {[%clk 0:01:18.1]} 34. Kxe1 {[%clk 0:00:46.5]} 34... f2+
{[%clk 0:01:18.3]} 35. Kf1 {[%clk 0:00:45.8]} 35... Qf3 {[%clk 0:01:10.6]} 36.
Be4 {[%clk 0:00:42.3]} 36... Ne3+ {[%clk 0:00:49.4]} 37. Bxe3 {[%clk 0:00:39.8]}
37... Qxe3 {[%clk 0:00:50.2]} 38. Qe2 {[%clk 0:00:31.7]} 38... Qxe2+ {[%clk
0:00:49.6]} 0-1